Cogmind - Beta 15 *** ADVENTURER MODE // 2025.08.05 @ 23:13:18 Player: Teku Result: Destroyed by S-27 Virus with Autogun Performance ------------- Evolutions (5) 2500 Regions Visited (4) 800 Robots Destroyed (20) 100 Value Destroyed (792) 792 Prototype IDs (7) 140 Alien Tech Used (0) 0 Bonus (300) 300 TOTAL SCORE: 4632 Bonus ------- Registered with UFD 300 Cogmind --------- Core Integrity 0/1000 Matter 273/300 Energy 99/100 System Corruption 8% Temperature Cool (0) Movement Core (50) Location -5/Factory Parts ------- > --- POWER (2) -------- (None) > --- PROPULSION (4) --- (None) > --- UTILITY (8) ------ Advanced Signal Interpreter Advanced Terrain Scan Processor > --- WEAPON (3) ------- (None) > --- INVENTORY (5) ---- Light Deuterium Engine Improved Deuterium Engine Cooled Nuclear Pulse Thruster Visual Processing Unit Advanced Targeting Computer Peak State ------------ > --- POWER ------------ Light Angular Momentum Engine Fission Core > --- PROPULSION ------- Medium Treads Armored Huge Wheel > --- UTILITY ---------- Scrap Suit Disposable Heat Sink Large Storage Unit Advanced Signal Interpreter Advanced Terrain Scan Processor Advanced ECM Suite Hacking Suite > --- WEAPON ----------- Heavy Laser Mini Grenade Launcher > --- INVENTORY -------- Light Deuterium Engine Light Nuclear Core Improved Deuterium Engine VTOL Module VTOL Module Cooled Nuclear Pulse Thruster Nuclear Pulse Array Visual Processing Unit Advanced Targeting Computer [Rating: 58] Favorites ----------- Power Light Deuterium Engine Engine Light Deuterium Engine Power Core Light Nuclear Core Propulsion Armored Huge Wheel Treads Medium Treads Wheel Armored Huge Wheel Flight Unit VTOL Module Utility Large Storage Unit Device Subdweller Optics Storage Large Storage Unit Processor Advanced Signal Interpreter Hackware Hacking Suite Weapon Assault Rifle Energy Gun Small Laser Ballistic Gun Assault Rifle Launcher Mini Grenade Launcher Build | -11 -10 -10 -7 -5 ------- Run | Yrd Mat Sub Scr Fac Slots Evolved 10 | . . . . 10 Power 1 | . . . . 1 Propulsion 2 | . . . . 2 Utility 6 | . . . . 6 Weapon 1 | . . . . 1 Parts Attached 36 | 5 2 1 6 22 Power 8 | 1 . . 3 4 Engine 5 | 1 . . 3 1 Core 3 | . . . . 3 Reactor . | . . . . . Propulsion 14 | 2 . . 2 10 Treads 3 | . . . . 3 Leg . | . . . . . Wheel 4 | 2 . . 2 . Hover . | . . . . . Flight 7 | . . . . 7 Utility 10 | . 2 1 1 6 Device 5 | . . 1 . 4 Storage 2 | . 2 . . . Processor 2 | . . . 1 1 Hackware 1 | . . . . 1 Protection . | . . . . . Artifact . | . . . . . Weapon 4 | 2 . . . 2 Energy Gun 1 | 1 . . . . Energy Cannon . | . . . . . Ballistic Gun 2 | 1 . . . 1 Ballistic Cannon . | . . . . . Launcher 1 | . . . . 1 Special Weapon . | . . . . . Impact Weapon . | . . . . . Slashing Weapon . | . . . . . Piercing Weapon . | . . . . . Special Melee Weapon . | . . . . . Unidentified Prototypes . | . . . . . Parts Lost 21 | . . . . 21 Power 2 | . . . . 2 Propulsion 10 | . . . . 10 Utility 4 | . . . . 4 Weapon 5 | . . . . 5 Highest Loss Streak 15 | . . . . 15 To Critical Strikes . | . . . . . Average Backups 9 | 1 3 7 11 8 Power 1 | . 1 2 1 2 Propulsion 4 | . 2 4 4 4 Utility 1 | . . . 3 . Weapon 1 | . . . 1 . Tool/Special . | . . . . . Unused Backups 14 | . . . 9 5 Power 3 | . . . 2 1 Propulsion 7 | . . . 6 1 Utility 2 | . . . . 2 Weapon 2 | . . . 1 1 Tool/Special . | . . . . . Average Slot Usage (%) 82 | . 83 89 85 77 Engine 10 | . 14 14 14 3 Core 1 | . . . . 2 Treads 4 | . . . . 11 Wheel 11 | . 28 28 14 1 Flight 1 | . . . . 4 Device 12 | . . 4 13 15 Storage 10 | . 12 14 14 4 Processor 2 | . . . . 7 Hackware 1 | . . . . 4 Energy Gun 10 | . 14 14 14 4 Ballistic Gun 11 | . 14 14 14 6 Peak Build Rating 58 | 5 6 10 22 58 Average Rating 26 | 3 5 7 17 47 On Entrance 8 | . 5 6 10 22 Naked Turns . | . . . . . Heaviest Build 45 | 6 26 28 35 45 Greatest Support 78 | 20 20 20 28 78 Greatest Overweight (x) 14 | . 1 1 1 14 Average Overweight (x) . | . . 1 . . Largest Inventory Capacity 15 | 5 15 15 15 15 Average Capacity 14 | 5 12 15 15 14 Most Carried 15 | 4 4 15 15 15 Average Carried 11 | 1 3 10 13 9 Final Capacity 15 | 5 15 15 15 5 Final Carried 15 | 3 3 15 12 5 Class Distribution -------------------- 67% | Mutant 12% | Derelict-Gunner 11% | Hacker-Gunner 6% | Hacker-Mutant Dominant Class ---------------- Mutant | -10/Materials Mutant | -10/Subcaves Mutant | -7/Scraptown Derelict-Gunner | -5/Factory Resources | -11 -10 -10 -7 -5 ----------- Run | Yrd Mat Sub Scr Fac Matter Collected 751 | 259 . 72 50 370 Remotely . | . . . . . Salvage Created 706 | 31 . 119 . 556 Parts 39 | 3 . 9 . 27 Haulers Intercepted . | . . . . . Recyclers Shooed . | . . . . . Parts Field Recycled . | . . . . . Retrieved Matter . | . . . . . Parts Self-Destructed 5 | . . 5 . . Prevented . | . . . . . Kills | -11 -10 -10 -7 -5 ------- Run | Yrd Mat Sub Scr Fac Combat Hostiles Destroyed 19 | 1 . 3 . 15 Guns 15 | 1 . 3 . 11 AOE 4 | . . . . 4 Classes Destroyed 5 | 1 . 1 . 3 Watcher 1 | . . . . 1 Swarmer 9 | . . . . 9 Grunt 5 | 1 . . . 4 Programmer 2 | . . . . 2 Subdweller 3 | . . 3 . . Best Kill Streak 5 | 1 . 1 . 5 Combat Bots Only 5 | 1 . 1 . 5 Max Kills in Single Turn 3 | 1 . 1 . 3 Gunslinging 1 | . . . . 1 Exploded 3 | . . . . 3 Melee . | . . . . . Uniques/NPCs Destroyed . | . . . . . Combat | -11 -10 -10 -7 -5 -------- Run | Yrd Mat Sub Scr Fac Hostile Shots Fired 272 | 3 . 10 . 259 Missed 71 | 1 . 4 . 66 Hits 201 | 2 . 6 . 193 Projectile 201 | 2 . 6 . 193 AOE 1 | . . . . 1 Critical Strikes 11 | . . . . 11 Part Disruptions 1 | . . . . 1 Damage Taken 3141 | 17 . 98 . 3026 Core 1052 | 9 . 36 . 1007 Absorbed by Shields . | . . . . . Ignored by Resistances 876 | 5 . 27 . 844 Regen/Repaired (Parts) 10 | . . . . 10 Core Remaining (%) 89 | 96 . . 82 . Volleys Fired 53 | 3 . 14 . 36 Largest 3 | 2 . 2 . 3 Hottest 119 | 60 . 60 . 119 Shots Fired 112 | 6 . 28 . 78 Gun 107 | 6 . 28 . 73 Cannon . | . . . . . Launcher 5 | . . . . 5 Special . | . . . . . Kinetic 56 | 3 . 14 . 39 Thermal 51 | 3 . 14 . 34 Explosive 5 | . . . . 5 Electromagnetic . | . . . . . Robot Hit Streak 17 | 4 . 17 . 10 Robot Miss Streak 3 | 1 . 1 . 3 Penetration Max . | . . . . . Secondary Targets 4 | . . . . 4 Max Gunslinging Chain 2 | . . . . 2 Shots Hit Robots 87 | 5 . 25 . 57 Core Hits 47 | 2 . 8 . 37 Critical Kills . | . . . . . Critical Parts Destroyed 1 | . . . . 1 Critical Strikes 2 | . . . . 2 Burn 1 | . . . . 1 Destroy 1 | . . . . 1 Melee Attacks . | . . . . . Impact . | . . . . . Slashing . | . . . . . Piercing . | . . . . . Sneak Attacks . | . . . . . Combat Hostiles . | . . . . . Follow-up Attacks . | . . . . . Damage Inflicted 1815 | 62 . 276 . 1477 Guns 1314 | 62 . 276 . 976 Cannons . | . . . . . Explosions 501 | . . . . 501 Melee . | . . . . . Ramming . | . . . . . Kinetic 667 | 29 . 145 . 493 Thermal 647 | 33 . 131 . 483 Explosive 501 | . . . . 501 Electromagnetic . | . . . . . Impact . | . . . . . Slashing . | . . . . . Piercing . | . . . . . Highest Corruption 8 | . . . . 8 Average Corruption 3 | . . . . 3 Corruption Purged . | . . . . . Corruption Blocked . | . . . . . Effects 10 | . . . . 10 Message Errors 2 | . . . . 2 Matter Fused 1 | . . . . 1 Heat Flow Errors 1 | . . . . 1 Parts Rejected 1 | . . . . 1 Data Loss (minor) 1 | . . . . 1 Misfires 1 | . . . . 1 Alerts 3 | . . . . 3 Overload Shots . | . . . . . Overflow Damage 3 | . . . . 3 Projectiles . | . . . . . Explosions 3 | . . . . 3 Melee . | . . . . . Knockbacks . | . . . . . Impact . | . . . . . Kinetic . | . . . . . Secondary . | . . . . . Self-Inflicted Damage 98 | . . . . 98 Shots 4 | . . . . 4 Rammed . | . . . . . Targets Rammed . | . . . . . Kicked . | . . . . . Crushed . | . . . . . Highest Temperature 172 | 12 . . . 172 Average Temperature 31 | 9 . . . 33 Received Heat Transfer 621 | 12 . 39 . 570 Siege Activations . | . . . . . Martial Activations . | . . . . . Shielding Activations . | . . . . . Robots Disrupted . | . . . . . Combat Hostiles . | . . . . . Robots Corrupted . | . . . . . Combat Hostiles . | . . . . . Parts Fried . | . . . . . Impact Corruptions . | . . . . . Robots Melted . | . . . . . Combat Hostiles . | . . . . . Parts Melted 2 | . . 2 . . Heat Transferred 1353 | 75 . 300 . 978 Parts Sabotaged . | . . . . . Parts Stolen . | . . . . . Parts Stripped . | . . . . . Power Chain Reactions . | . . . . . Alert | -11 -10 -10 -7 -5 ------- Run | Yrd Mat Sub Scr Fac Maximum Alert Level . | . . . . . Low Security (%) 100 | 100 100 . . 100 Level 1 . | . . . . . Level 2 . | . . . . . Level 3 . | . . . . . Level 4 . | . . . . . Level 5 . | . . . . . High Security . | . . . . . Max Security . | . . . . . Peak Influence 96 | 20 1 . . 96 Initial . | . . . . . Average 20 | 4 . . . 23 Influence Increases 423 | 20 1 . . 402 Destroy 0b10 Robot/C 320 | 20 . . . 300 Destroy 0b10 Robot/NC 5 | . . . . 5 Destroy Leader 22 | . . . . 22 Successful Hack 1 | . 1 . . . Disable Machine 18 | . . . . 18 Destroy Structure 42 | . . . . 42 Lose Combat Pursuer 15 | . . . . 15 Influence Decreases 423 | 20 1 . . 402 Time Decay 321 | 20 1 . . 300 Lost Part 102 | . . . . 102 Squads Dispatched 1 | . . . . 1 Investigation . | . . . . . Extermination 1 | . . . . 1 Reinforcement . | . . . . . Assault . | . . . . . Garrison . | . . . . . Intercept . | . . . . . Searches Triggered . | . . . . . Construction Impeded . | . . . . . Haulers Reinforced . | . . . . . Active Scanning Responses . | . . . . . Cargo Convoy Interrupts . | . . . . . Stealth | -11 -10 -10 -7 -5 --------- Run | Yrd Mat Sub Scr Fac Distress Signals . | . . . . . Communications Jammed . | . . . . . Distress Signals . | . . . . . Times Spotted 42 | 1 . 6 . 35 Peak Tracking Total 15 | 1 . 2 . 15 Tactical Retreats 1 | . . . . 1 Traps | -11 -10 -10 -7 -5 ------- Run | Yrd Mat Sub Scr Fac Traps Triggered 1 | . . . . 1 Indirectly . | . . . . . Trap Hack Attempts . | . . . . . Triggered . | . . . . . Disarmed . | . . . . . Reprogrammed . | . . . . . Reused . | . . . . . Traps Extracted . | . . . . . Installed . | . . . . . Triggered . | . . . . . Machines | -11 -10 -10 -7 -5 ---------- Run | Yrd Mat Sub Scr Fac Machines Disabled 2 | . . . . 2 Max in Single Turn 2 | . . . . 2 Machines Repaired . | . . . . . Machines Dismantled . | . . . . . Machines Sabotaged . | . . . . . Overloaded Fab Kills . | . . . . . Hacking | -11 -10 -10 -7 -5 --------- Run | Yrd Mat Sub Scr Fac Machines Accessed 5 | . 1 . 3 1 Terminals 1 | . 1 . . . Fabricators . | . . . . . Repair Stations 1 | . . . . 1 Recycling Units . | . . . . . Scanalyzers . | . . . . . Garrison Access . | . . . . . Total Hacks 17 | . 4 . 12 1 Successful 16 | . 4 . 12 . Failed 1 | . . . . 1 Catastrophic . | . . . . . Database Lockouts . | . . . . . Manual . | . . . . . Terminals 4 | . 4 . . . Fabricators . | . . . . . Repair Stations 1 | . . . . 1 Recycling Units . | . . . . . Scanalyzers . | . . . . . Garrison Access . | . . . . . Terminal Hacks 16 | . 4 . 12 . Record 14 | . 3 . 11 . Alert Level 1 | . 1 . . . Proto ID Catalog 1 | . . . 1 . Fabricator Hacks . | . . . . . Repair Station Hacks . | . . . . . Recycling Unit Hacks . | . . . . . Scanalyzer . | . . . . . Garrison Access Hacks . | . . . . . Unauthorized Hacks . | . . . . . Terminals . | . . . . . Fabricators . | . . . . . Repair Stations . | . . . . . Recycling Units . | . . . . . Scanalyzers . | . . . . . Garrison Access . | . . . . . Data Cores Recovered . | . . . . . Used . | . . . . . Hacking Detections . | . . . . . Full Trace Events . | . . . . . Feedback Events . | . . . . . Feedback Blocked . | . . . . . Robot Schematics Acquired . | . . . . . Robots Built . | . . . . . Authchips . | . . . . . Time . | . . . . . Total Robot Build Rating . | . . . . . Part Schematics Acquired . | . . . . . Parts Built . | . . . . . Authchips . | . . . . . Time . | . . . . . Total Part Build Rating . | . . . . . Parts Repaired . | . . . . . Time . | . . . . . Parts Recycled . | . . . . . Recycled Matter . | . . . . . Retrieved Matter . | . . . . . Retrieved Components . | . . . . . Parts Scanalyzed . | . . . . . Part Schematics Acquired . | . . . . . Parts Damaged . | . . . . . Bothacking | -11 -10 -10 -7 -5 ------------ Run | Yrd Mat Sub Scr Fac Used RIF Installer . | . . . . . Robots Hacked . | . . . . . Non-combat . | . . . . . Combat . | . . . . . Robot Hacks Applied . | . . . . . Relay Couplers Released 4 | . . . . 4 Programmers 4 | . . . . 4 Fabnet Peak Effective % . | . . . . . Robots Rewired . | . . . . . Allies Hacked . | . . . . . Hacks Repelled . | . . . . . Allies | -11 -10 -10 -7 -5 -------- Run | Yrd Mat Sub Scr Fac Total Allies . | . . . . . Largest Group . | . . . . . Highest-Rated Group . | . . . . . Highest-Rated Ally . | . . . . . Total Orders . | . . . . . Ally Attacks . | . . . . . Total Damage . | . . . . . Kills . | . . . . . Allies Corrupted . | . . . . . Allies Melted . | . . . . . Intel | -11 -10 -10 -7 -5 ------- Run | Yrd Mat Sub Scr Fac Active Infowar (turns) 933 | . . 86 632 215 Optics 718 | . . 86 632 . Terrain 55 | . . . . 55 ECM 160 | . . . . 160 Robot Analysis Total . | . . . . . Derelict Logs Recovered 3 | . . . 3 . Drone Launches . | . . . . . Drone Recoveries . | . . . . . Exploration | -11 -10 -10 -7 -5 ------------- Run | Yrd Mat Sub Scr Fac Turns Passed 2763 | 108 74 280 1357 944 Spaces Moved 2130 | 111 62 183 1237 537 Core 75 | 38 . . . 37 Treads 417 | . . . . 417 Legs . | . . . . . Wheels 1556 | 73 62 183 1237 1 Hover . | . . . . . Flight 82 | . . . . 82 Fastest Speed 30 | 50 80 95 95 30 Average Speed 113 | 69 85 95 107 145 Slowest Speed 755 | 80 95 95 115 755 Overloaded Moves . | . . . . . Propulsion Burnouts . | . . . . . Robots Hopped . | . . . . . Potential Cave-ins . | . . . . . Cave-ins Triggered . | . . . . . Exploration Rate (%) 28 | 9 17 12 87 17 Regions Visited 4 Branch Regions 2 Pre-discovered Areas 1 | . . . 1 . Known Exits Taken 1 | . . . 1 . Unknown Exits Taken 3 | 1 1 1 . . Scrap Searched 5 | . . . 5 . Spaces Dug . | . . . . . Terrain Destroyed 23 | . . . . 23 Melee . | . . . . . Projectile . | . . . . . AOE 23 | . . . . 23 Terrain Rammed . | . . . . . Walls Destroyed . | . . . . . Machines Disabled . | . . . . . Actions | -11 -10 -10 -7 -5 --------- Run | Yrd Mat Sub Scr Fac Total 2398 | 135 82 261 1277 643 Wait 89 | 9 16 50 2 12 Move 2126 | 110 61 182 1236 537 Hop . | . . . . . Pick Up 53 | 8 2 13 13 17 Fast Attach 1 | . . 1 . . Attach 35 | 5 1 . 2 27 Detach 8 | . . . 1 7 Swap 8 | . 1 . 4 3 Drop 25 | . 1 1 19 4 Fire 53 | 3 . 14 . 36 Melee . | . . . . . Ram . | . . . . . Kick . | . . . . . Crush . | . . . . . Escape Stasis . | . . . . . Rewire . | . . . . . Trap . | . . . . . Miscellaneous . | . . . . . Route ------- -11/Scrapyard -10/Materials (discovered 2 exits: [*Mat] / [*Sub]) -10/Subcaves -7/Scraptown (discovered 2 exits: *Fac x2) -5/Factory History --------- Turn | Location | Event 2 | -11/Scrapyard | Met Revision 17 35 | -11/Scrapyard | Discovered new exit (range 8) 109 | -11/Scrapyard | Entered Materials 110 | -10/Materials | Met a group of wandering Federalists 153 | -10/Materials | Discovered new exit (range 14) 178 | -10/Materials | Discovered new exit (range 8) 183 | -10/Materials | Entered Subcaves 183 | -10/Subcaves | Accompanied by 2 allies 184 | -10/Subcaves | Continued accompanying wandering Federalists (6) 317 | -10/Subcaves | Build established: Mutant 399 | -10/Subcaves | A swath of the cavern ceiling suddenly collapsed 412 | -10/Subcaves | Wandering Federalist uncovered a shortcut to Scraptown 463 | -10/Subcaves | Entered Scraptown 725 | -7/Scraptown | Discovered new exit (range 5) 799 | -7/Scraptown | Scanned Subdweller tech in exchange for log data 803 | -7/Scraptown | Learned location of 2 exits from Proximity Caves 804 | -7/Scraptown | Learned location of Warlord (-4) 827 | -7/Scraptown | Visited Red Mages 871 | -7/Scraptown | Visited Fellowship of the Rings 893 | -7/Scraptown | Visited Cave Peace 945 | -7/Scraptown | Visited Spacefarers 993 | -7/Scraptown | Visited Shadow of the Wyrm 1167 | -7/Scraptown | Visited UFD Registry 1167 | -7/Scraptown | Registered with UFD as "Fibertalker" 1216 | -7/Scraptown | Visited DA-N13 Charitable Foundation 1234 | -7/Scraptown | Found DCF Scrap (30 items) 1293 | -7/Scraptown | Visited Chapter 10 1332 | -7/Scraptown | Visited Science Guys 1519 | -7/Scraptown | Visited Research Penetration Think Tank 1544 | -7/Scraptown | Visited Derelict Rescue Squad 1562 | -7/Scraptown | Visited Abandonware Association 1589 | -7/Scraptown | Visited Curators Association 1630 | -7/Scraptown | Visited Scrap Suit Storage 1642 | -7/Scraptown | Found Scrap Suit 1810 | -7/Scraptown | Discovered new exit (range 5) 1819 | -7/Scraptown | Identified exit to Factory 1820 | -7/Scraptown | Entered Factory 1820 | -5/Factory | Evolved 10 slots: Power x1, Propulsion x2, Utility x6, Weapon x1 2303 | -5/Factory | Lost 5 parts (3n2w) 2724 | -5/Factory | Core integrity fell below 50% 2744 | -5/Factory | Core integrity fell below 20% 2764 | -5/Factory | Destroyed by S-27 Virus with Autogun Last Messages --------------- 02729_ U-05 Engineer builds a Wall. 02729_ VTOL Module destroyed. 02730_ Penetrated by Slug. 02730_ U-05 Engineer lays Concrete. 02733_ M-28 Smith repairs G-50 Soldier. 02733_ Penetrated by Slug. 02733_ VTOL Module destroyed. 02736_ Penetrated by Slug. 02736_ K-01 Serf cleans the Power Conduit. 02739_ Triggered Segregator Trap. 02739_ Arcs of energy rise from the floor. 02739_ Penetrated by Slug. 02742_ P-70 Sage resets P-70 Sage, system corruption cleaned. 02743_ Penetrated by Slug. 02744_ Dropped Lrg. Storage Unit. 02746_ Penetrated by Slug. 02746_ Nuclear Pulse Array destroyed. 02746_ Slug penetrates Wall. 02746_ Hacking Suite destroyed. 02749_ System corrupted: IFF burst signal emitted. Map ----- +----------------------------------------------------+ | ????????????????????????????????????????? | | ######???????????????????????????????????????????? | | #????????##############?????????????????????? | | """" #????????? #?????????????????????? | | """" ###???????? #?????????????????????? | | " "" + ?????????? #?????????????????????? | | "" #????????????? #?????????????????????? | | #?????????????? #?????????????????????? | | #???????????????# #?????????????????????? | | #???????????????# #?????????????????????? | | #######?????????????# #??????#"#######??????? | | ##? =#?????????????# ##### ??????? | | # !#?????????????# + """"??????????? | | #[ #?????????????+ ##### """"??????????? | | "] #?????????????# #?????? """"??????????? | | #! = #?????????????# #????????"""??????????? | | [ # #?????????????# #?????????? ??????????? | | [ #?##+#?????????????# #?????????????????????? | | #### ###############p #?????????????????????? | | g g R p #?????????????????????? | | !g #?????????????????????? | | ^ #?????????????????????? | | #?????????????????????? | | ###########???????????? | | ###### ############### ???????? | | ???? ?????????????# @ s ???????? | | ?? ##????????????# s ???????? | | ?# ##?????????????# sss ????????? | | ?## ##???????????????# w ????????? | | ??##?????????????????####+########## ?????????? | | ?????????????????????????????????????? ?????????? | | ?????????????????????????????????????????????????? | | ?????????????????????????????????????????????????? | | ?????????????????????????????????????????????????? | | ?????????????????????????????????????????????????? | | ?????????????????????????????????????????????????? | | ?????????????????????????????????????????????????? | | ?????????????????????????????????????????????????? | | ?????????????????????????????????????????????????? | | ?????????????????????????????????????????????????? | | ?????????????????????????????????????????????????? | | ?????????????????????????????????????????????????? | | ?????????????????????????????????????????????????? | | ?????????????????????????????????????????????????? | | ?????????????????????????????????????????????????? | | ?????????????????????????????????????????????????? | | ?????????????????????????????????????????????????? | | ?????????????????????????????????????????????????? | | ?????????????????????????????????????????????????? | | ?????????????????????????????????????????????????? | +----------------------------------------------------+ Best States ------------- Heat Dissipation 40 Coolant Potential 50 Energy Generation 31 Energy Capacity 360 Matter Stores 300 Matter Capacity 300 Sight Range 21 Terrain Scan Range 16 Terrain Scan Density 210 ECM Strength 2 Resistance: KI 20 Resistance: TH 20 Resistance: EX 20 Resistance: EM 20 Resistance: I 20 Resistance: S 20 Resistance: P 20 Evasion (%) 50 Recoil Reduction 3 Offensive Hacking 20 Item Schematics ----------------- None Robot Schematics ------------------ None Fabricated ------------ Nothing Repaired ---------- Nothing Alien Tech Used ----------------- None Achievements -------------- Maybe Next Time I'll Detach My Launcher Serviceable Loadout Challenges ------------ None Game ------ Seed ChipHybridCutter Manual? 0 Play Time 00:35:44 Cumulative 1.5 hours Start 2025.08.05 @ 22:38:01 End 2025.08.05 @ 23:13:18 Sessions 1 Manual Loads 0 Difficulty Adventurer Special Mode None Game No. 2 Rogue 0 Adventurer 2 Explorer 0 Win Type - Total 0 Types 0/0/0/0/0/0/0/0/0/0 Lore% 6 Gallery% 5 Achievement% 5 Wizard Run 0 Options --------- Layout 0 ASCII 0 Keyboard 0 Movement Numpad Keybinds 0 Fullscreen 1 Font 24/Smallcaps Map View 76x50 Zoom Use 0% Tactical HUD 1 Map Filters NONE Filters NONE Steam 1 RUN: 41f66db3-d169-40dc-bb3b-06de7f4c3dde